bitfinex/quotes_BTCUSD_20250723
["timestamp","ask_amount","ask_price","bid_price","bid_amount"]
[1753281510811,0.34783859,118100.0,118090.0,0.33726679]
[1753281511041,0.37383125,118110.0,118100.0,0.22584933]
[1753281511255,0.7222975,118110.0,118100.0,0.52986933]
[1753281511476,0.37328427,118110.0,118100.0,0.52986933]
[1753281512116,0.38175038,118110.0,118100.0,0.52986933]
[1753281512321,0.37328427,118110.0,118100.0,0.52986933]
[1753281512744,0.38175038,118110.0,118100.0,0.52986933]
[1753281512946,0.37328427,118110.0,118100.0,0.52986933]
[1753281513155,0.38101572,118110.0,118100.0,0.52986933]
[1753281513414,0.72101572,118110.0,118100.0,0.52986933]
[1753281514049,0.35565058,118110.0,118100.0,0.61434663]
[1753281514278,0.35564987,118110.0,118100.0,0.61434663]
[1753281514695,0.37148663,118110.0,118100.0,0.61434663]
[1753281514900,0.37248663,118110.0,118100.0,0.61434663]
[1753281515143,1.13785177,118110.0,118100.0,0.61634663]
[1753281515355,1.13685177,118110.0,118100.0,0.61634663]
[1753281515557,1.12912032,118110.0,118100.0,0.61634663]
[1753281515770,0.42375518,118110.0,118100.0,0.61734663]
[1753281515979,0.42375518,118110.0,118100.0,0.31844663]
[1753281516193,0.02375518,118110.0,118100.0,0.31844663]
[1753281516396,0.02375518,118110.0,118100.0,0.68381177]
[1753281517022,0.70536514,118140.0,118130.0,0.22549987]
[1753281517235,0.36375781,118140.0,118130.0,0.31509717]
[1753281517462,0.01583854,118140.0,118130.0,0.31509717]
[1753281517688,0.45023038,118150.0,118140.0,0.2254834]
[1753281517901,0.45023038,118150.0,118140.0,0.2274334]
[1753281517902,0.45037763,118150.0,118140.0,0.2274334]
[1753281518102,0.79037749,118150.0,118140.0,0.2306034]
[1753281518326,0.79884094,118150.0,118140.0,0.2306034]
[1753281518533,0.79884087,118150.0,118140.0,0.2306034]
[1753281518763,0.81576807,118150.0,118140.0,0.2306034]
[1753281518964,0.8073044,118150.0,118140.0,0.2152034]
[1753281519181,0.7983958,118150.0,118140.0,0.2152034]
[1753281519440,0.7993958,118150.0,118140.0,0.2152034]
[1753281519604,0.79093227,118150.0,118140.0,0.2152034]
[1753281519824,0.42701235,118150.0,118140.0,0.2152034]
[1753281520038,0.78346889,118150.0,118140.0,0.2152034]
[1753281520444,0.78346889,118150.0,118140.0,0.2318034]
[1753281520713,0.77500558,118150.0,118140.0,0.2318034]
[1753281520928,0.3500465,118150.0,118140.0,0.3162807]
[1753281521395,0.00214725,118150.0,118140.0,0.3162807]
[1753281522032,0.00114725,118150.0,118140.0,0.3162807]
[1753281522240,0.00014725,118150.0,118140.0,0.3162807]
[1753281523704,0.00014725,118150.0,118140.0,0.3172807]
[1753281524714,0.00014725,118150.0,118140.0,0.3182807]
[1753281525795,0.01707409,118150.0,118140.0,0.3182807]
[1753281526011,0.01707401,118150.0,118140.0,0.3182807]
[1753281526237,0.01707401,118150.0,118140.0,0.3016807]
[1753281526421,0.89336056,118150.0,118140.0,0.28809667]
[1753281526617,0.90182437,118150.0,118140.0,0.27269682]
[1753281526850,0.98076836,118150.0,118140.0,0.1797552]
[1753281527052,0.98076836,118150.0,118140.0,0.18821966]
[1753281527376,0.89629106,118150.0,118140.0,0.19668397]
[1753281527588,0.71562048,118150.0,118140.0,0.21361224]
[1753281527795,0.72408415,118150.0,118140.0,0.21361224]
[1753281528000,0.69869379,118150.0,118140.0,0.21556224]
[1753281528201,0.34014725,118150.0,118140.0,0.33520954]
[1753281528402,0.69660379,118150.0,118140.0,0.33520954]
[1753281528873,0.71353055,118150.0,118140.0,0.33520954]
[1753281529087,0.72408422,118150.0,118140.0,0.31880954]
[1753281529289,0.89336056,118150.0,118140.0,0.2987112]
[1753281529524,0.89336056,118150.0,118140.0,0.31563947]
[1753281530019,1.29336056,118150.0,118140.0,0.17129067]
[1753281530226,1.38076786,118150.0,118140.0,0.18821952]
[1753281530428,1.38076786,118150.0,118140.0,0.19668383]
[1753281530640,1.36937455,118150.0,118140.0,0.17129067]
[1753281530863,1.82054666,118150.0,118140.0,0.002]
[1753281531073,1.83871033,118150.0,118140.0,0.002]
[1753281531281,1.92318763,118150.0,118140.0,0.002]
[1753281531494,1.95361543,118150.0,118140.0,0.002]
[1753281531922,1.95361543,118150.0,118110.0,0.18626491]
[1753281531923,0.53471636,118120.0,118110.0,0.2108313]
[1753281532132,0.91142657,118120.0,118110.0,0.28879221]
[1753281532382,0.91142657,118120.0,118110.0,0.30572506]
[1753281532612,0.90172886,118120.0,118110.0,0.31419138]
[1753281532818,0.8932634,118120.0,118110.0,0.31419138]
[1753281533045,0.8932634,118120.0,118110.0,0.30572506]
[1753281533457,0.8932634,118120.0,118110.0,0.30772506]
[1753281533675,1.2932634,118120.0,118110.0,0.31619131]
[1753281533891,1.2932634,118120.0,118110.0,0.31936131]
[1753281534106,1.2932634,118120.0,118110.0,0.31089506]
[1753281534527,1.3114441,118120.0,118110.0,0.31089506]
[1753281534737,1.2932634,118120.0,118110.0,0.30242867]
[1753281534956,1.31144373,118120.0,118110.0,0.31289506]
[1753281535180,0.93633183,118120.0,118110.0,0.31289499]
[1753281535392,0.9532634,118120.0,118110.0,0.31289506]
[1753281535599,0.9532634,118120.0,118110.0,0.29596221]
[1753281535600,0.94479772,118120.0,118110.0,0.29596221]
[1753281535805,1.02872447,118120.0,118110.0,0.33302791]
[1753281536023,0.94424717,118120.0,118110.0,0.34149459]
[1753281536299,0.93578121,118120.0,118110.0,0.46259424]
[1753281536514,0.93578121,118120.0,118110.0,0.06905043]
[1753281536515,0.56974378,118120.0,118110.0,0.06905043]
[1753281536647,0.56974378,118120.0,118110.0,0.0487174]
[1753281537044,0.56974378,118120.0,118090.0,0.29135618]
[1753281537267,0.76756898,118110.0,118100.0,0.02540155]
[1753281537495,0.96647155,118110.0,118100.0,0.21319956]
[1753281537701,0.8056042,118110.0,118100.0,0.22466645]
[1753281537907,0.97752892,118110.0,118100.0,0.2161997]
[1753281538325,0.96906253,118110.0,118100.0,0.19926541]
[1753281538585,0.95212946,118110.0,118100.0,0.0309174]
[1753281538793,0.95212946,118110.0,118100.0,0.20026541]
[1753281538994,0.95212946,118110.0,118100.0,0.02245]
[1753281539251,0.95212946,118110.0,118100.0,0.20326533]
[1753281539434,0.95212946,118110.0,118100.0,0.20121533]
[1753281539639,0.95212946,118110.0,118100.0,0.13398526]
[1753281539956,0.17781533,118100.0,118090.0,0.16936235]
[1753281540160,0.55214444,118100.0,118090.0,0.18638151]
[1753281540364,0.37432911,118100.0,118090.0,0.20536695]
[1753281540594,0.01583257,118100.0,118090.0,0.32444425]
[1753281540798,0.41583257,118100.0,118090.0,0.32444425]
[1753281541193,0.01583257,118100.0,118090.0,0.32444425]
[1753281541811,0.01583257,118100.0,118090.0,0.32544425]
[1753281542640,0.73878464,118120.0,118110.0,0.15328117]
[1753281542848,0.73769506,118120.0,118110.0,0.18919667]
[1753281543067,1.00842347,118120.0,118110.0,0.18373049]
[1753281543269,0.99353226,118120.0,118110.0,0.15966432]
[1753281543475,0.99353226,118120.0,118110.0,0.16933367]
[1753281543476,0.96813473,118120.0,118110.0,0.16933367]
[1753281543691,0.88658743,118120.0,118110.0,0.17780035]
[1753281543933,0.88365743,118120.0,118110.0,0.17780035]
[1753281544139,0.19473278,118110.0,118100.0,0.22196957]
[1753281544348,0.41462985,118110.0,118100.0,0.31656384]
[1753281544562,0.80616324,118110.0,118100.0,0.30469743]
[1753281544769,0.92906218,118110.0,118100.0,0.19820687]
[1753281544974,0.92906218,118110.0,118100.0,0.17920708]
[1753281544975,0.60414816,118110.0,118100.0,0.17920708]
[1753281545175,0.9606047,118110.0,118100.0,0.49299144]
[1753281545378,0.78280428,118110.0,118100.0,0.5119753]
[1753281545594,0.79127067,118110.0,118100.0,0.44406284]
[1753281545810,0.80073721,118110.0,118100.0,0.61339805]
[1753281546029,0.97007088,118110.0,118100.0,0.59646419]
[1753281546224,0.56258633,118110.0,118100.0,0.58799708]
[1753281546427,0.39325266,118110.0,118100.0,0.59476424]
[1753281546633,0.37631944,118110.0,118100.0,0.59306415]
[1753281546780,0.35745654,118110.0,118100.0,0.59606415]
[1753281546986,0.001,118110.0,118100.0,0.61256415]
[1753281547196,0.401,118110.0,118100.0,0.61256415]
[1753281548203,0.41793243,118110.0,118100.0,0.61256415]
[1753281548843,0.42639889,118110.0,118100.0,0.61256415]
[1753281549050,0.42639882,118110.0,118100.0,0.61256415]
[1753281549268,0.401,118110.0,118100.0,0.61256415]
[1753281549474,0.41793228,118110.0,118100.0,0.61256415]
[1753281549680,0.41793221,118110.0,118100.0,0.62826415]
[1753281549856,0.42639853,118110.0,118100.0,0.62826415]
[1753281550283,0.40946603,118110.0,118100.0,0.62826415]
[1753281550497,0.41793228,118110.0,118100.0,0.62826415]
[1753281550681,0.4263986,118110.0,118100.0,0.62826415]
[1753281551101,0.41793228,118110.0,118100.0,0.62826415]
[1753281551329,0.401,118110.0,118100.0,0.62826415]
[1753281551534,0.40946611,118110.0,118100.0,0.62826415]
[1753281551740,0.41793236,118110.0,118100.0,0.62826415]
[1753281551920,0.401,118110.0,118100.0,0.62826415]
[1753281552570,0.76592257,118110.0,118100.0,0.62826415]
[1753281553026,0.40946603,118110.0,118100.0,0.62826415]
[1753281553229,0.39611608,118110.0,118100.0,0.62826415]
[1753281553454,0.39611594,118110.0,118100.0,0.62826415]
[1753281553573,0.40458226,118110.0,118100.0,0.62826415]
[1753281553777,0.39611594,118110.0,118100.0,0.62826415]
[1753281553997,0.7610388,118110.0,118100.0,0.62826415]
[1753281554206,0.76950526,118110.0,118100.0,0.61133029]
[1753281554419,0.38173868,118110.0,118100.0,0.62826429]
[1753281554975,0.36492272,118110.0,118100.0,0.62826429]
[1753281555180,0.36492265,118110.0,118100.0,0.62826429]
[1753281555421,0.35645654,118110.0,118100.0,0.62826429]
[1753281555640,0.4,118110.0,118100.0,0.62826429]
[1753281556074,0.90057627,118110.0,118100.0,0.62826429]
[1753281556283,0.77338882,118110.0,118100.0,0.62826429]
[1753281556489,0.77338875,118110.0,118100.0,0.62826429]
[1753281556708,0.78185507,118110.0,118100.0,0.62826429]
[1753281556928,0.77338875,118110.0,118100.0,0.62826429]
[1753281557152,0.76492257,118110.0,118100.0,0.62826429]
[1753281557366,0.77369608,118110.0,118100.0,0.62826429]
[1753281557783,0.78216226,118110.0,118100.0,0.62826429]
[1753281558212,0.79062879,118110.0,118100.0,0.62826429]
[1753281558388,0.79266879,118110.0,118100.0,0.59606429]
[1753281558598,0.78420233,118110.0,118100.0,0.59606429]
[1753281558763,0.77573608,118110.0,118100.0,0.59606429]
[1753281559034,1.04312562,118110.0,118100.0,0.5845974]
[1753281559264,1.04312612,118110.0,118100.0,0.56561311]
[1753281559453,0.97549858,118110.0,118100.0,0.57408029]
[1753281559661,0.97549858,118110.0,118100.0,0.58254726]
[1753281559864,1.31196679,118110.0,118100.0,0.2989]
[1753281560070,0.51781541,118100.0,118090.0,0.17791347]
[1753281560276,0.88508538,118100.0,118090.0,0.26239091]
[1753281560471,0.90058538,118100.0,118090.0,0.26239091]
[1753281560685,0.56058538,118100.0,118090.0,0.27085888]
[1753281560879,0.55355256,118100.0,118090.0,0.28779446]
[1753281561084,0.39267123,118100.0,118090.0,0.29626207]
[1753281561491,0.38250459,118100.0,118090.0,0.31407431]
[1753281561690,0.38250459,118100.0,118090.0,0.31607431]
[1753281561941,0.38250409,118100.0,118090.0,0.31707431]
[1753281562138,0.35506333,118100.0,118090.0,0.33691207]
[1753281562341,0.74846611,118110.0,118100.0,0.22734933]
[1753281562599,0.76522997,118110.0,118100.0,0.33263814]
[1753281563030,0.36522997,118110.0,118100.0,0.33263814]
[1753281563196,0.37369536,118120.0,118110.0,0.22733285]
[1753281563413,0.71369529,118120.0,118110.0,0.32962166]
[1753281563560,0.37369529,118120.0,118110.0,0.33262166]
[1753281563986,0.36522997,118120.0,118110.0,0.33262166]
[1753281564378,0.36522997,118120.0,118110.0,0.31686015]
[1753281564785,0.37369529,118120.0,118110.0,0.31686015]
[1753281565195,0.01046532,118120.0,118110.0,0.31686015]
[1753281565441,0.002,118120.0,118110.0,0.31686015]
[1753281567082,0.37150638,118130.0,118110.0,0.3326223]
[1753281567295,0.73028569,118140.0,118130.0,0.19470002]
[1753281567507,0.72182123,118140.0,118130.0,0.51782699]
[1753281567722,0.72182123,118140.0,118130.0,0.51981699]
[1753281567931,0.72392123,118140.0,118130.0,0.51981699]
[1753281568153,0.67309485,118140.0,118130.0,0.22091699]
[1753281568371,0.66463039,118140.0,118130.0,0.22091699]
[1753281568596,0.37558601,118140.0,118130.0,0.22403699]
[1753281568809,0.01046396,118140.0,118130.0,0.22403699]
[1753281569034,0.01046396,118140.0,118130.0,0.24003699]
[1753281569035,0.36702177,118140.0,118130.0,0.24003699]
[1753281569257,0.3098319,118140.0,118130.0,0.21046225]
[1753281569476,0.58396403,118140.0,118130.0,0.2019975]
[1753281569705,0.5826359,118140.0,118130.0,0.2019975]
[1753281569915,0.5858259,118140.0,118130.0,0.1935324]
[1753281570131,0.57217024,118140.0,118130.0,0.21046239]
[1753281570388,0.57415024,118140.0,118130.0,0.21046239]
[1753281570581,0.55189287,118140.0,118130.0,0.21046239]
[1753281570844,0.55189287,118140.0,118130.0,0.20198541]
[1753281571062,0.56002848,118140.0,118130.0,0.20198541]
[1753281571275,0.50252483,118140.0,118130.0,0.19352009]
[1753281571483,0.49236021,118140.0,118130.0,0.19352009]
[1753281571908,0.49057021,118140.0,118130.0,0.19352009]
[1753281572138,0.83903467,118140.0,118130.0,0.20198512]
[1753281573006,0.49903467,118140.0,118130.0,0.21045008]
[1753281573189,0.56849294,118140.0,118130.0,0.19352009]
[1753281573635,0.56849294,118140.0,118130.0,0.20198512]
[1753281573842,0.56849294,118140.0,118130.0,0.21045008]
[1753281574022,0.57695718,118140.0,118130.0,0.20198505]
[1753281574485,0.40766651,118140.0,118130.0,0.20198505]
[1753281574717,0.41613047,118140.0,118130.0,0.21891468]
[1753281574936,0.5938861,118140.0,118130.0,0.20198512]
[1753281575148,0.5735575,118140.0,118130.0,0.19352009]
[1753281575565,0.57368216,118140.0,118130.0,0.20198512]
[1753281575781,0.57368216,118140.0,118130.0,0.21045008]
[1753281576006,0.56521792,118140.0,118130.0,0.21045008]
[1753281576436,0.55007907,118140.0,118130.0,0.01574999]
[1753281576804,0.70007907,118140.0,118130.0,0.01574999]
[1753281577004,0.70480767,118140.0,118130.0,0.01574999]
[1753281578232,0.72220767,118140.0,118130.0,0.01574999]
[1753281578802,0.72220767,118140.0,118130.0,0.20198512]
[1753281579006,0.6899244,118140.0,118130.0,0.20198512]
[1753281579423,0.52361088,118140.0,118130.0,0.21044986]
[1753281579629,0.53207469,118140.0,118130.0,0.21044986]
[1753281580106,0.54053908,118140.0,118130.0,0.21044986]
[1753281580699,0.54053908,118140.0,118130.0,0.19469987]
[1753281580903,0.71829486,118140.0,118130.0,0.19469987]
[1753281581111,0.71829486,118140.0,118130.0,0.17777017]
[1753281581322,0.70983076,118140.0,118130.0,0.18623527]
[1753281581530,0.70136652,118140.0,118130.0,0.18623527]
[1753281581738,0.52361103,118140.0,118130.0,0.19470016]
[1753281581939,0.52361103,118140.0,118130.0,0.2031649]
[1753281582363,0.70983069,118140.0,118130.0,0.1947003]
[1753281582572,0.70136652,118140.0,118130.0,0.1947003]
[1753281582778,0.70136652,118140.0,118130.0,0.20316526]
[1753281583404,0.74034718,118140.0,118130.0,0.1947003]
[1753281583606,1.09618922,118140.0,118130.0,0.1947003]
[1753281583813,0.75618922,118140.0,118130.0,0.1947003]
[1753281584020,0.75618922,118140.0,118130.0,0.20316526]
[1753281584468,0.71720856,118140.0,118130.0,0.2116298]
[1753281584672,0.71720856,118140.0,118130.0,0.20316498]
[1753281584865,0.71720856,118140.0,118130.0,0.19470009]
[1753281585413,0.71720856,118140.0,118130.0,0.20316498]
[1753281585635,0.71720856,118140.0,118130.0,0.19470009]
[1753281585895,0.71720856,118140.0,118130.0,0.18623513]
[1753281586335,0.69181518,118140.0,118120.0,0.16931933]
[1753281586595,0.01693099,118120.0,118110.0,0.20319938]
[1753281586811,0.37239985,118120.0,118110.0,0.24100938]
[1753281587035,0.38933063,118120.0,118110.0,0.24100938]
[1753281587263,0.39796155,118120.0,118110.0,0.24100938]
[1753281587491,0.59267798,118120.0,118110.0,0.2325432]
[1753281587712,0.95786778,118120.0,118110.0,0.18626681]
[1753281587912,0.94940225,118120.0,118110.0,0.19473313]
[1753281588154,0.9409365,118120.0,118110.0,0.18626689]
[1753281588397,0.93247068,118120.0,118110.0,0.01046668]
[1753281588613,0.92400479,118120.0,118110.0,0.17980035]
[1753281589247,0.92400479,118120.0,118110.0,0.002]
[1753281589514,0.9346079,118120.0,118110.0,0.002]
[1753281589747,0.92400479,118120.0,118110.0,0.17980035]
[1753281589989,0.7716166,118120.0,118110.0,0.20519931]
[1753281590204,0.78008249,118120.0,118110.0,0.20519931]
[1753281590412,0.78008249,118120.0,118110.0,0.20831931]
[1753281590645,0.22749032,118120.0,118110.0,0.19985313]
[1753281590877,0.95786778,118120.0,118110.0,0.21562035]
[1753281591124,1.00913998,118120.0,118110.0,0.17980035]
[1753281591339,0.93247068,118120.0,118110.0,0.17980035]
[1753281591528,0.93247068,118120.0,118110.0,0.18280035]
[1753281591755,0.93247068,118120.0,118110.0,0.19126681]
[1753281592016,0.93247068,118120.0,118110.0,0.18280035]
[1753281592253,1.28040479,118120.0,118110.0,0.005]
[1753281592503,1.68268209,118120.0,118110.0,0.005]
[1753281592739,1.76715939,118120.0,118110.0,0.005]
[1753281593237,1.78166556,118120.0,118110.0,0.005]
[1753281593433,1.80710956,118120.0,118110.0,0.005]
[1753281594072,1.80710956,118120.0,118110.0,0.003]
[1753281594290,0.20321631,118100.0,118090.0,0.20323394]
[1753281594493,0.97577968,118100.0,118090.0,0.23912402]
[1753281594716,0.98424679,118100.0,118090.0,0.24224402]
[1753281594912,0.97578004,118100.0,118090.0,0.03901]
[1753281595169,0.96731307,118100.0,118090.0,0.21684046]
[1753281595540,0.96731307,118100.0,118090.0,0.22639165]
[1753281595842,0.95884603,118100.0,118090.0,0.00208315]
[1753281596043,1.04332333,118100.0,118090.0,0.1714455]
[1753281596346,0.95037878,118100.0,118090.0,0.17991361]
[1753281596766,0.95038383,118100.0,118090.0,0.00208315]
[1753281597013,0.95038383,118100.0,118090.0,0.17991354]
[1753281597225,0.96731826,118100.0,118090.0,0.19893926]
[1753281597438,0.60212953,118100.0,118090.0,0.09556968]
[1753281597661,1.30731826,118100.0,118090.0,0.21195444]
[1753281597875,1.30731826,118100.0,118090.0,0.23091987]
[1753281598088,1.14643686,118100.0,118090.0,0.24942119]
[1753281598298,1.33271959,118100.0,118090.0,0.24095358]
[1753281598520,1.31578573,118100.0,118090.0,0.17317584]
[1753281598732,1.30083123,118100.0,118090.0,0.01813]
[1753281599171,1.29236383,118100.0,118090.0,0.0161]
[1753281599387,0.17783032,118090.0,118080.0,0.51058267]
[1753281599622,0.92892487,118090.0,118080.0,0.29904712]
[1753281599839,1.43612487,118090.0,118080.0,0.00014712]
[1753281600061,1.83612487,118090.0,118080.0,0.00014712]
[1753281600300,1.87337634,118090.0,118080.0,0.00014712]
[1753281600525,0.0169396,118060.0,118050.0,0.18936959]
[1753281600751,0.39797542,118060.0,118050.0,0.59220944]
[1753281601001,0.58432111,118060.0,118050.0,0.59220951]
[1753281601220,0.41491573,118060.0,118050.0,0.60067999]
[1753281601447,0.40644554,118060.0,118050.0,0.61717999]
[1753281601664,0.38950551,118060.0,118050.0,0.61717999]
[1753281601885,0.38103582,118060.0,118050.0,0.61717999]
[1753281602099,0.38950544,118060.0,118050.0,0.62117999]
[1753281602370,0.38103582,118060.0,118050.0,0.62117999]
[1753281603033,0.39797527,118060.0,118050.0,0.62117999]
[1753281603468,0.39797527,118060.0,118050.0,0.56739802]
[1753281603685,0.57585063,118060.0,118050.0,0.55045699]
[1753281603923,0.39797527,118060.0,118050.0,0.56739802]
[1753281604144,0.38103582,118060.0,118050.0,0.56739802]
[1753281604464,0.38950558,118060.0,118050.0,0.56739802]
[1753281604683,0.56738065,118060.0,118050.0,0.55045699]
[1753281604929,0.5758507,118060.0,118050.0,0.61494894]
[1753281605154,0.40644525,118060.0,118050.0,0.63189004]
[1753281605367,0.38950551,118060.0,118050.0,0.61154996]
[1753281605579,0.4064451,118060.0,118050.0,0.61154996]
[1753281605796,0.42338513,118060.0,118050.0,0.61154996]
[1753281606011,0.41491501,118060.0,118050.0,0.61154996]
[1753281606218,0.39797527,118060.0,118050.0,0.61154996]
[1753281606428,0.40644518,118060.0,118050.0,0.56917566]
[1753281606635,0.40644518,118060.0,118050.0,0.32990004]
[1753281607065,0.93491087,118060.0,118050.0,0.27735901]
[1753281607287,0.82198781,118060.0,118050.0,0.27565941]
[1753281607504,0.82198831,118060.0,118050.0,0.21855219]
[1753281607725,0.98292393,118060.0,118050.0,0.18441109]
[1753281607937,0.74856618,118060.0,118050.0,0.20135255]
[1753281608169,0.72315582,118060.0,118050.0,0.24781303]
[1753281608394,0.74009542,118060.0,118050.0,0.24781303]
[1753281608646,0.72950551,118060.0,118050.0,0.24781303]
[1753281608986,0.35584709,118060.0,118050.0,0.24781303]
[1753281609201,0.35584709,118060.0,118050.0,0.37485388]
[1753281609202,0.72103582,118060.0,118050.0,0.37485388]
[1753281610548,0.72103582,118060.0,118050.0,0.33229033]
[1753281610960,0.7379752,118060.0,118050.0,0.33229033]
[1753281611204,0.72950544,118060.0,118050.0,0.33229033]
[1753281611648,0.7379752,118060.0,118050.0,0.33229033]
[1753281612077,0.72950544,118060.0,118050.0,0.33229033]
[1753281612514,0.72103582,118060.0,118050.0,0.33229033]
[1753281612761,0.35584709,118060.0,118050.0,0.33229033]
[1753281612971,0.72103582,118060.0,118050.0,0.33229033]
[1753281613430,0.72950558,118060.0,118050.0,0.33229033]
[1753281613652,0.72950551,118060.0,118050.0,0.33229033]
[1753281613873,0.36518873,118060.0,118050.0,0.33229033]
[1753281614095,0.70518873,118060.0,118050.0,0.33229033]
[1753281614313,0.71365842,118060.0,118050.0,0.33229033]
[1753281614531,0.72212818,118060.0,118050.0,0.57156595]
[1753281614755,0.70518873,118060.0,118050.0,0.57156595]
[1753281614986,0.70518873,118060.0,118050.0,0.33229033]
[1753281614987,0.71365835,118060.0,118050.0,0.33229033]
[1753281615666,0.38212818,118060.0,118050.0,0.33229033]
[1753281615871,0.37365835,118060.0,118050.0,0.33229033]
[1753281616088,0.38212804,118060.0,118050.0,0.33229033]
[1753281616567,0.73059787,118060.0,118050.0,0.33229033]
[1753281616783,0.70518873,118060.0,118050.0,0.33229033]
[1753281617250,0.70518873,118060.0,118050.0,0.57156595]
[1753281617467,0.76540721,118070.0,118060.0,0.23211531]
[1753281617682,1.13059594,118070.0,118060.0,0.23211531]
[1753281617894,1.14640736,118070.0,118060.0,0.23723531]
[1753281618111,1.15487669,118070.0,118060.0,0.23723531]
[1753281618324,1.14640736,118070.0,118060.0,0.47651093]
[1753281618536,0.78968789,118070.0,118060.0,0.47651093]
[1753281618755,1.15487662,118070.0,118060.0,0.47751093]
[1753281618998,1.13793809,118070.0,118060.0,0.47751093]
[1753281619219,0.75581142,118070.0,118060.0,0.23823531]
[1753281619457,1.12100015,118070.0,118060.0,0.23823531]
[1753281619702,1.14640764,118070.0,118060.0,0.23823531]
[1753281620138,1.14640764,118070.0,118060.0,0.23923531]
[1753281620618,1.16546652,118070.0,118060.0,0.23923531]
[1753281620843,1.38658527,118070.0,118060.0,0.19037562]
[1753281621054,1.37811594,118070.0,118060.0,0.18190557]
[1753281621270,1.15215706,118070.0,118060.0,0.002]
[1753281621746,1.07614924,118070.0,118060.0,0.18834569]
[1753281621976,0.90518783,118070.0,118060.0,0.18834569]
[1753281622210,0.91365687,118070.0,118060.0,0.19681567]
[1753281622428,0.90518783,118070.0,118060.0,0.19681567]
[1753281622642,0.7357968,118070.0,118060.0,0.21375534]
[1753281622853,1.11545764,118070.0,118060.0,0.2295015]
[1753281624183,0.73024982,118070.0,118060.0,0.2717815]
[1753281624397,1.09331855,118070.0,118060.0,0.3106715]
[1753281624631,1.08484965,118070.0,118060.0,0.3548988]
[1753281624839,0.69932204,118070.0,118060.0,0.3548988]
[1753281625056,1.06451077,118070.0,118060.0,0.3548988]
[1753281625513,0.76518873,118070.0,118060.0,0.3548988]
[1753281626887,0.36518873,118080.0,118070.0,0.22341631]
[1753281627116,0.70518873,118090.0,118080.0,0.23188232]
[1753281627330,0.70518873,118090.0,118080.0,0.4889041]
[1753281627540,0.70518873,118090.0,118080.0,0.4921441]
[1753281627764,0.36518873,118090.0,118080.0,0.4921441]
[1753281628040,0.39059199,118090.0,118080.0,0.4921441]
[1753281628265,0.39276192,118090.0,118080.0,0.4550441]
[1753281628526,0.36735873,118090.0,118080.0,0.4705041]
[1753281628753,0.00217,118090.0,118080.0,0.49216716]
[1753281628975,0.4285814,118100.0,118090.0,0.19476583]
[1753281629195,0.4307514,118100.0,118090.0,0.21053505]
[1753281629626,0.58845223,118100.0,118090.0,0.21053505]
[1753281629865,0.03603872,118100.0,118090.0,0.21053505]
[1753281630290,0.57522152,118100.0,118090.0,0.20206744]
[1753281630505,0.57257546,118100.0,118090.0,0.21900287]
[1753281630723,0.01893443,118100.0,118090.0,0.23271048]
[1753281630933,0.38412316,118100.0,118090.0,0.4719861]
[1753281631152,0.57142546,118100.0,118090.0,0.46351849]
[1753281631369,0.38514288,118100.0,118090.0,0.48943512]
[1753281631586,0.40207753,118100.0,118090.0,0.46351815]
[1753281631849,0.52257988,118100.0,118090.0,0.46351815]
[1753281632040,0.52257988,118100.0,118090.0,0.46151815]
[1753281632291,0.52257988,118100.0,118090.0,0.45827815]
[1753281632505,0.33629722,118100.0,118090.0,0.46674576]
[1753281632722,0.2685133,118100.0,118090.0,0.46674576]
[1753281632934,0.03688801,118100.0,118090.0,0.46674576]
[1753281633146,0.40207674,118100.0,118090.0,0.48419478]
[1753281633363,0.57142475,118100.0,118090.0,0.24815916]
[1753281633594,0.32920248,118100.0,118090.0,0.24815916]
[1753281633808,0.28682049,118100.0,118090.0,0.24815916]
[1753281634045,0.28682014,118100.0,118090.0,0.29562274]
[1753281634321,0.83457601,118120.0,118110.0,0.19524894]
[1753281634322,0.337,118120.0,118110.0,0.19524894]
[1753281634502,0.86998694,118120.0,118110.0,0.21948471]
[1753281634718,0.73638355,118120.0,118110.0,0.2311911]
[1753281634931,0.74484901,118120.0,118110.0,0.23965742]
[1753281635142,0.74484901,118120.0,118110.0,0.2311911]
[1753281635361,0.73638355,118120.0,118110.0,0.22272486]
[1753281635623,0.72991787,118120.0,118110.0,0.0332179]
[1753281635844,0.21402914,118120.0,118110.0,0.20255157]
[1753281636067,0.93647567,118120.0,118110.0,0.04168458]
[1753281636314,0.99247551,118120.0,118110.0,0.0332179]
[1753281636752,1.04926458,118120.0,118110.0,0.01576888]
[1753281636967,1.05773033,118120.0,118110.0,0.01576888]
[1753281637189,1.00966107,118120.0,118110.0,0.01576888]
[1753281637415,1.01066107,118120.0,118110.0,0.01576888]
[1753281637891,1.08747567,118120.0,118110.0,0.21101825]
[1753281638119,0.7130529,118120.0,118110.0,0.22795125]
[1753281638342,0.7130529,118120.0,118110.0,0.23963871]
[1753281638571,0.7130529,118120.0,118110.0,0.23117239]
[1753281638797,0.37465426,118120.0,118110.0,0.24810496]
[1753281639051,0.00946532,118120.0,118110.0,0.30880363]
[1753281639315,0.01793078,118120.0,118110.0,0.30880363]
[1753281639547,0.54454049,118130.0,118120.0,0.20369992]
[1753281639771,0.44287239,118130.0,118120.0,0.21944994]
[1753281639989,0.44287239,118130.0,118120.0,0.21945001]
[1753281640436,0.44287239,118130.0,118120.0,0.24720859]
[1753281640886,0.55289575,118130.0,118120.0,0.24720859]
[1753281641319,0.38356581,118130.0,118120.0,0.25891405]
[1753281641554,0.40049551,118130.0,118120.0,0.24467113]
[1753281641777,0.39203048,118130.0,118120.0,0.24467113]
[1753281642650,0.37510092,118130.0,118120.0,0.26247113]
[1753281643522,0.00991219,118130.0,118120.0,0.34694843]
[1753281643757,0.38356559,118130.0,118120.0,0.34694843]
[1753281643950,0.77465333,118130.0,118120.0,0.34694843]
[1753281644160,0.80615637,118130.0,118120.0,0.34694843]
[1753281644361,0.41462147,118130.0,118120.0,0.34694843]
[1753281644798,0.4146214,118130.0,118120.0,0.34694843]
[1753281645006,0.643165,118130.0,118120.0,0.20370006]
[1753281645208,0.65320011,118130.0,118120.0,0.01744902]
[1753281645439,0.62440377,118130.0,118120.0,0.03316379]
[1753281645638,0.58549733,118130.0,118120.0,0.03316379]
[1753281646057,0.97018606,118130.0,118120.0,0.01571477]
[1753281646186,1.20466336,118130.0,118120.0,0.01571477]
[1753281646401,0.19474956,118100.0,118090.0,0.00324]
[1753281646639,0.19474956,118100.0,118080.0,0.19802246]
[1753281646640,0.02540326,118090.0,118080.0,0.19802246]
[1753281646837,0.03276342,118090.0,118080.0,0.66996435]
[1753281647317,0.02429567,118090.0,118080.0,0.68836435]
[1753281647533,0.03276342,118090.0,118080.0,0.68836435]
[1753281647708,0.04123132,118090.0,118080.0,0.68836435]
[1753281648148,0.40642005,118090.0,118080.0,0.67396435]
[1753281648578,0.3894844,118090.0,118080.0,0.67396435]
[1753281648793,0.01582806,118090.0,118080.0,0.67396435]
[1753281648993,0.0242956,118090.0,118080.0,0.68799602]
[1753281649448,0.01582806,118090.0,118080.0,0.70493275]
[1753281649686,0.0242956,118090.0,118080.0,0.70493275]
[1753281650107,0.01582806,118090.0,118080.0,0.70493275]
[1753281650534,0.02429553,118090.0,118080.0,0.70493275]